bitfinex-derivatives/quotes_SOLF0:USTF0_20250929
["timestamp","ask_amount","ask_price","bid_price","bid_amount"]
[1759136611899,4.09,208.82,208.77,7.63]
[1759136612101,4.09,208.82,208.76,4.3098]
[1759136612500,4.3085,208.83,208.76,4.3098]
[1759136612795,8.3985,208.83,208.77,7.63]
[1759136616409,4.09,208.81,208.77,7.63]
[1759136616908,4.09,208.81,208.76,4.3098]
[1759136617503,4.3087,208.82,208.77,7.63]
[1759136617811,4.09,208.81,208.77,7.63]
[1759136618007,4.3087,208.82,208.77,7.63]
[1759136618209,4.309,208.81,208.77,7.63]
[1759136618812,4.09,208.8,208.77,7.63]
[1759136619013,4.09,208.8,208.75,4.3099]
[1759136619805,4.09,208.8,208.76,7.63]
[1759136620410,4.09,208.8,208.75,4.3099]
[1759136620621,4.09,208.8,208.76,7.63]
[1759136621013,4.09,208.8,208.75,4.3099]
[1759136621214,4.09,208.8,208.76,7.63]
[1759136621415,4.09,208.8,208.75,4.3099]
[1759136621815,4.3087,208.82,208.77,7.63]
[1759136622217,8.3987,208.82,208.76,11.9397]
[1759136623919,4.09,208.82,208.78,7.63]
[1759136624318,4.09,208.82,208.77,4.3096]
[1759136624519,4.09,208.82,208.78,7.63]
[1759136624714,4.3083,208.84,208.78,11.9393]
[1759136624918,4.09,208.85,208.78,7.63]
[1759136626826,4.09,208.85,208.79,4.3091]
[1759136627517,8.3981,208.85,208.79,4.3091]
[1759136638229,8.3981,208.85,208.8,7.56]
[1759136638431,8.3981,208.85,208.79,4.3091]
[1759136638733,4.09,208.85,208.8,4.309]
[1759136639230,8.3979,208.86,208.79,4.3092]
[1759136639536,8.3979,208.86,208.8,7.56]
[1759136640230,8.3979,208.86,208.81,4.3088]
[1759136640430,8.3979,208.86,208.82,7.56]
[1759136640631,4.09,208.85,208.82,7.56]
[1759136642131,4.3079,208.86,208.82,7.56]
[1759136642333,0.25034,208.91,208.85,8.85114443]
[1759136643135,4.09,208.9,208.81,7.56]
[1759136643433,1.29114443,208.89,208.78,1.29114443]
[1759136643633,1.29114443,208.89,208.78,8.85114443]
[1759136644036,4.09,208.88,208.78,8.85114443]
[1759136644232,4.3081,208.85,208.8,4.3091]
[1759136644431,4.3081,208.85,208.8,11.8691]
[1759136644636,4.09,208.84,208.81,7.56]
[1759136645231,66.9997,208.9,208.8,4.3091]
[1759136645436,1.29114443,208.88,208.79,7.56]
[1759136645637,4.09,208.87,208.79,7.56]
[1759136645942,4.3082,208.85,208.79,11.8692]
[1759136646835,4.09,208.87,208.81,7.56]
[1759136647440,8.3978,208.87,208.82,4.3085]
[1759136647944,4.3078,208.87,208.82,4.3085]
[1759136648140,4.09,208.86,208.83,7.56]
[1759136650440,4.3078,208.87,208.83,7.56]
[1759136650647,4.09,208.86,208.83,7.56]
[1759136652048,4.09,208.86,208.82,7.56]
[1759136652348,4.09,208.86,208.81,4.3088]
[1759136652538,4.09,208.86,208.82,7.56]
[1759136652738,4.09,208.86,208.81,4.3088]
[1759136653149,4.09,208.86,208.82,7.99]
[1759136653349,8.3878,208.87,208.81,4.3088]
[1759136653648,8.3878,208.87,208.82,7.99]
[1759136653848,4.3073,208.89,208.83,7.99]
[1759136655554,8.63724,208.91,208.84,4.3082]
[1759136655850,8.63724,208.91,208.85,7.99]
[1759136657551,8.63724,208.91,208.83,7.99]
[1759136657753,8.63724,208.91,208.85,7.99]
[1759136658548,4.55724,208.91,208.86,4.3078]
[1759136658753,4.08,208.9,208.87,7.99]
[1759136660354,8.3872,208.9,208.87,7.99]
[1759136664656,4.3072,208.9,208.87,7.99]
[1759136664857,4.08,208.89,208.87,7.99]
[1759136665855,8.3874,208.89,208.86,7.59]
[1759136667356,4.08,208.88,208.86,7.59]
[1759136668452,4.3077,208.87,208.83,7.59]
[1759136668658,4.08,208.89,208.83,7.59]
[1759136668849,4.08,208.85,208.78,7.59]
[1759136669054,4.08,208.8,208.77,21.59643051]
[1759136669256,4.08,208.8,208.77,7.59]
[1759136669754,4.08,208.9,208.79,1.29114443]
[1759136669955,4.08,208.9,208.83,7.59]
[1759136670160,4.08,208.9,208.84,1.29114443]
[1759136671155,4.08,208.9,208.85,7.59]
[1759136671553,8.3872,208.9,208.82,4.3086]
[1759136671758,8.3872,208.9,208.84,8.88114443]
[1759136672457,8.3872,208.9,208.84,7.59]
[1759136677860,4.3074,208.89,208.84,7.59]
[1759136678157,8.3874,208.89,208.83,8.88114443]
[1759136684974,8.3874,208.89,208.83,13.18954443]
[1759136687770,4.3069,208.91,208.85,7.59]
[1759136687969,4.3069,208.91,208.85,8.88114443]
[1759136688169,4.08,208.9,208.85,1.29114443]
[1759136688469,4.08,208.9,208.85,4.3079]
[1759136688667,8.3869,208.91,208.85,11.8979]
[1759136697181,8.3869,208.91,208.86,4.3078]
[1759136697380,4.08,208.9,208.87,7.56]
[1759136698874,4.08,208.9,208.86,4.3078]
[1759136699282,4.08,208.9,208.87,7.56]
[1759136699576,4.08,208.9,208.86,4.3078]
[1759136699784,4.08,208.9,208.87,7.56]
[1759136701484,4.08,208.9,208.84,4.3082]
[1759136701783,4.3065,208.93,208.85,4.308]
[1759136701985,4.08,208.92,208.86,7.56]
[1759136702776,4.3065,208.93,208.87,7.56]
[1759136702982,4.08,208.94,208.87,7.56]
[1759136703379,66.9772,208.97,208.87,7.56]
[1759136703681,4.08,208.96,208.87,7.56]
[1759136703887,66.9772,208.97,208.87,7.56]
[1759136704086,4.08,208.96,208.87,7.56]
[1759136704282,66.9772,208.97,208.87,7.56]
[1759136704484,4.08,208.96,208.87,7.56]
[1759136704686,4.08,208.91,208.84,4.3082]
[1759136704890,4.08,208.91,208.85,7.56]
[1759136705893,4.08,208.91,208.85,11.868]
[1759136706092,4.3063,208.94,208.86,7.56]
[1759136706288,119.09616499,208.98,208.86,7.56]
[1759136706889,4.08,208.97,208.86,7.56]
[1759136707078,119.09616499,208.98,208.86,7.56]
[1759136707483,4.08,208.97,208.86,7.56]
[1759136707684,8.3865,208.93,208.87,4.3075]
[1759136707888,8.3865,208.93,208.88,7.56]
[1759136708087,8.3865,208.93,208.87,11.8675]
[1759136708792,8.3865,208.93,208.88,7.56]
[1759136708986,8.3865,208.93,208.87,4.3075]
[1759136709387,8.3865,208.93,208.88,7.56]
[1759136710094,8.3865,208.93,208.87,4.3075]
[1759136710790,8.3865,208.93,208.86,7.56]
[1759136710991,4.3068,208.92,208.86,7.56]
[1759136711993,4.3068,208.92,208.86,11.8678]
[1759136714288,4.3068,208.92,208.86,7.56]
[1759136714492,8.3868,208.92,208.86,7.56]
[1759136715395,4.08,208.92,208.88,7.36]
[1759136715592,4.3063,208.94,208.82,119.07616499]
[1759136715794,4.3063,208.94,208.84,7.36]
[1759136716094,8.3866,208.93,208.87,7.36]
[1759136716294,4.08,208.93,208.87,7.36]
[1759136717592,4.3067,208.92,208.87,7.36]
[1759136717793,4.08,208.91,208.86,4.3078]
[1759136718001,4.3067,208.92,208.87,7.36]
[1759136718197,4.3063,208.94,208.87,7.36]
[1759136718400,4.08,208.95,208.87,7.36]
[1759136719099,4.3067,208.92,208.87,7.36]
[1759136719300,4.3067,208.92,208.85,7.36]
[1759136719599,8.3867,208.92,208.85,7.36]
[1759136720307,4.3063,208.94,208.87,7.36]
[1759136720496,3.47382469,208.93,208.87,7.36]
[1759136720694,4.3063,208.94,208.87,7.36]
[1759136720896,3.47382218,208.93,208.87,7.36]
[1759136721092,4.3063,208.94,208.87,7.36]
[1759136721293,3.47382318,208.93,208.87,7.36]
[1759136721493,4.3066,208.93,208.88,7.36]
[1759136722091,4.3068,208.92,208.87,4.3075]
[1759136722299,7.55388376,208.91,208.88,7.36]
[1759136722507,4.08,208.91,208.88,7.36]
[1759136723608,8.3869,208.91,208.85,4.308]
[1759136723904,4.3069,208.91,208.85,4.308]
[1759136724297,8.3969,208.91,208.85,4.308]
[1759136724505,8.3969,208.91,208.86,7.3]
[1759136724707,4.3071,208.9,208.85,4.308]
[1759136724908,4.3071,208.9,208.86,7.3]
[1759136725107,4.3071,208.9,208.85,4.308]
[1759136726398,4.3071,208.9,208.86,7.3]
[1759136726600,4.3071,208.9,208.85,4.308]
[1759136727108,4.3071,208.9,208.84,7.3]
[1759136727496,4.3071,208.9,208.84,11.6082]
[1759136727700,4.3071,208.9,208.84,4.3082]
[1759136727901,4.3071,208.9,208.85,7.3]
[1759136728103,4.3071,208.9,208.84,4.3082]
[1759136728503,4.3071,208.9,208.85,4.308]
[1759136728707,4.3071,208.9,208.86,7.3]
[1759136729099,8.3971,208.9,208.84,7.3]
[1759136729407,8.3971,208.9,208.84,117.04]
[1759136729808,8.3971,208.9,208.85,7.3]
[1759136730107,4.3067,208.92,208.85,7.3]
[1759136730301,3.47569726,208.91,208.85,7.3]
[1759136730503,3.47601681,208.9,208.84,121.3482]
[1759136730705,4.09,208.93,208.85,7.3]
[1759136730904,4.09,208.91,208.85,7.3]
[1759136731108,4.09,208.89,208.84,121.3482]
[1759136731306,68.99376499,208.97,208.85,7.3]
[1759136731307,4.09,208.96,208.85,7.3]
[1759136731603,3.47637155,208.95,208.85,7.3]
[1759136731800,4.09,208.93,208.85,7.3]
[1759136732007,3.47637155,208.92,208.85,7.3]
[1759136732206,3.47637155,208.91,208.85,7.3]
[1759136732407,3.47637155,208.9,208.85,7.3]
[1759136732608,4.307,208.91,208.85,7.3]
[1759136732810,3.47677038,208.9,208.85,7.3]
[1759136733117,4.307,208.91,208.85,7.3]
[1759136733319,7.78397038,208.9,208.85,7.3]
[1759136733504,4.3072,208.9,208.85,7.3]
[1759136733907,4.3072,208.9,208.84,121.3482]
[1759136734409,4.3072,208.9,208.86,7.3]
[1759136734609,4.3072,208.9,208.85,4.308]
[1759136734809,4.3072,208.9,208.86,7.3]
[1759136735309,4.3072,208.9,208.85,4.308]
[1759136735508,4.3072,208.9,208.86,7.3]
[1759136735815,4.3072,208.9,208.85,4.308]
[1759136736410,8.3972,208.9,208.86,7.3]
[1759136736618,8.3972,208.9,208.85,4.308]
[1759136736809,8.3972,208.9,208.86,7.3]
[1759136737006,8.3972,208.9,208.85,4.308]
[1759136737210,8.3972,208.9,208.86,7.3]
[1759136737413,8.3972,208.9,208.85,4.308]
[1759136738113,8.3972,208.9,208.86,7.3]
[1759136738417,8.3972,208.9,208.85,4.308]
[1759136738919,8.3972,208.9,208.86,7.3]
[1759136739216,8.3972,208.9,208.85,4.308]
[1759136739417,8.3972,208.9,208.86,7.3]
[1759136739620,8.3972,208.9,208.85,4.308]
[1759136740012,8.3972,208.9,208.86,7.3]
[1759136740220,8.3972,208.9,208.85,4.308]
[1759136740721,8.3972,208.9,208.86,7.3]
[1759136741018,8.3972,208.9,208.85,4.308]
[1759136741219,8.3972,208.9,208.86,7.3]
[1759136741418,8.3972,208.9,208.85,4.308]
[1759136742113,8.3972,208.9,208.86,7.3]
[1759136742514,8.3972,208.9,208.85,4.308]
[1759136743411,8.3972,208.9,208.86,7.3]
[1759136743812,8.3972,208.9,208.85,4.308]
[1759136744013,8.3972,208.9,208.86,7.3]
[1759136744719,8.3972,208.9,208.85,4.308]
[1759136745023,8.3972,208.9,208.86,7.3]
[1759136745910,8.3972,208.9,208.85,4.308]
[1759136746315,8.3972,208.9,208.86,7.3]
[1759136747216,8.3972,208.9,208.85,4.308]
[1759136747416,8.3972,208.9,208.86,7.3]
[1759136747613,8.3972,208.9,208.85,4.308]
[1759136748220,8.3972,208.9,208.86,7.3]
[1759136748422,3.47948739,208.89,208.85,4.308]
[1759136748720,8.3972,208.9,208.85,4.308]
[1759136748916,3.47949288,208.89,208.85,4.308]
[1759136749117,8.3972,208.9,208.85,4.308]
[1759136749521,8.3972,208.9,208.85,121.308]
[1759136749817,8.3972,208.9,208.85,121.288]
[1759136750020,8.3972,208.9,208.86,7.3]
[1759136750225,8.3972,208.9,208.86,1.29024846]
[1759136750521,8.3972,208.9,208.87,7.3]
[1759136750923,4.09,208.9,208.87,7.3]
[1759136751427,8.3968,208.92,208.87,7.3]
[1759136751625,3.46814135,208.91,208.87,7.3]
[1759136751926,3.46814135,208.9,208.86,122.59804846]
[1759136752114,8.3968,208.92,208.87,7.3]
[1759136752314,4.09,208.9,208.87,7.3]
[1759136752519,4.09,208.9,208.86,118.27024846]
[1759136752820,4.09,208.9,208.87,7.3]
[1759136754430,4.09,208.9,208.87,7.43]
[1759136754824,8.3566,208.93,208.87,11.7376]
[1759136755025,4.05,208.91,208.88,7.43]
[1759136755228,3.4680901,208.9,208.88,7.43]
[1759136755529,4.05,208.91,208.88,7.43]
[1759136755732,3.46812915,208.9,208.88,7.43]
[1759136755937,1.29024846,208.96,208.88,7.43]
[1759136756133,3.46812915,208.95,208.88,7.43]
[1759136756333,3.46812915,208.94,208.88,7.43]
[1759136756531,4.05,208.92,208.88,7.43]
[1759136756733,4.05,208.9,208.88,7.43]
[1759136756933,4.3068,208.91,208.87,4.3076]
[1759136757135,3.46814388,208.9,208.88,7.43]
[1759136757431,8.3568,208.91,208.88,7.43]
[1759136757636,7.51817986,208.9,208.88,7.43]
[1759136757834,4.05,208.9,208.88,7.43]
[1759136763141,8.3565,208.93,208.88,4.3074]
[1759136763330,3.46803741,208.92,208.89,7.43]
[1759136763535,3.46803741,208.91,208.89,7.43]
[1759136763839,4.05,208.92,208.89,7.43]
[1759136764035,3.4680653,208.91,208.89,7.43]
[1759136764236,4.05,208.92,208.89,7.43]
[1759136764436,3.46799188,208.91,208.89,7.43]
[1759136764638,4.05,208.92,208.89,7.43]
[1759136764943,3.46799188,208.91,208.88,4.3074]
[1759136765245,4.05,208.92,208.89,7.43]
[1759136765445,3.46795744,208.91,208.89,7.43]
[1759136765639,4.05,208.92,208.88,4.3074]
[1759136765839,3.46795744,208.91,208.89,7.43]
[1759136766041,4.05,208.92,208.88,4.3074]
[1759136766238,3.46779312,208.91,208.88,4.3074]
[1759136766545,4.05,208.95,208.89,7.43]
[1759136766740,3.46784603,208.94,208.89,7.43]
[1759136766939,4.05,208.92,208.89,7.43]
[1759136767248,4.05,208.93,208.9,7.43]
[1759136767434,3.46765192,208.92,208.88,1.29024846]
[1759136767635,4.05,208.96,208.89,7.43]
[1759136767840,4.05,208.96,208.84,67.0184]
[1759136767841,3.46745616,208.95,208.91,4.3067]
[1759136768144,4.05,208.96,208.91,4.3067]
[1759136768348,3.46503131,208.95,208.91,4.3067]
[1759136768640,4.3055,208.98,208.92,7.43]
[1759136768846,3.46502748,208.97,208.93,7.43]
[1759136769152,3.46502748,208.96,208.92,5.59684846]
[1759136769345,4.05,208.99,208.93,7.43]
[1759136769550,3.46338285,208.98,208.93,7.43]
[1759136769750,3.46338285,208.97,208.93,7.43]
[1759136770052,4.05,208.99,208.93,7.43]
[1759136770346,3.46165661,208.98,208.93,7.43]
[1759136770647,8.3553,208.99,208.93,11.7363]
[1759136770844,4.05,208.97,208.93,4.3063]
[1759136771446,4.05,208.97,208.94,7.43]
[1759136771851,4.05,208.97,208.93,4.3063]
[1759136772749,4.3053,208.99,208.94,7.3]
[1759136772955,4.06,208.97,208.94,7.3]
[1759136773653,4.06,209.0,208.94,4.3061]
[1759136773857,4.52689,209.01,208.94,4.3061]
[1759136774156,7.51789882,209.0,208.94,11.6061]
[1759136774453,4.06,209.0,208.94,11.6061]
[1759136774653,8.3652,209.0,208.94,11.6061]
[1759136775357,0.22199,209.01,208.95,7.3]
[1759136775550,4.28199,209.01,208.95,7.3]
[1759136775746,8.58699,209.01,208.95,7.3]
[1759136776054,8.58699,209.01,208.95,21.42784938]
[1759136776451,4.3052,209.0,208.95,21.42784938]
[1759136777360,4.06,208.99,208.95,21.42784938]
[1759136777557,4.3052,209.0,208.95,21.42784938]
[1759136777755,4.3052,209.0,208.95,14.12784938]
[1759136777962,4.06,208.99,208.96,7.3]
[1759136778264,4.3052,209.0,208.96,7.3]
[1759136778764,4.3052,209.0,208.95,7.3]
[1759136778958,4.06,208.99,208.93,7.3]
[1759136779860,4.06,208.99,208.93,21.72059952]
[1759136780464,4.06,208.99,208.93,26.02699952]
[1759136781367,4.06,208.99,208.93,18.72699952]
[1759136781561,4.3052,209.0,208.93,135.60699952]
[1759136781864,4.3052,209.0,208.94,7.3]
[1759136782764,4.3052,209.0,208.94,8.59024846]
[1759136783364,4.3052,209.0,208.94,125.47024846]
[1759136784566,4.3052,209.0,208.95,7.44]
[1759136784764,8.3652,209.0,208.95,7.44]
[1759136784962,8.3652,209.0,208.94,118.17024846]
[1759136785267,4.3052,209.0,208.95,7.44]
[1759136785466,4.3052,209.0,208.94,118.17024846]
[1759136785668,8.3652,209.0,208.95,7.44]
[1759136786073,4.3052,209.0,208.94,118.17024846]
[1759136786666,4.06,208.99,208.95,7.44]
[1759136787666,4.06,208.99,208.95,1.29024846]
[1759136787867,4.06,208.99,208.96,7.44]
[1759136788075,4.06,208.99,208.95,1.29024846]
[1759136788573,4.06,208.99,208.96,7.44]
[1759136788966,4.06,208.99,208.95,1.29024846]
[1759136789167,4.06,208.99,208.96,7.44]
[1759136789574,4.3052,209.0,208.96,7.44]
[1759136789766,4.06,208.99,208.96,7.44]
[1759136789962,4.3052,209.0,208.96,7.44]
[1759136790169,4.06,208.99,208.96,7.44]
[1759136793680,4.06,208.99,208.95,1.29024846]
[1759136793868,4.06,208.99,208.96,7.44]
[1759136794579,4.3052,209.0,208.96,7.44]
[1759136794777,4.06,208.99,208.96,7.44]
[1759136795677,4.06,208.99,208.94,121.1662]
[1759136795978,4.06,208.99,208.95,7.44]
[1759136796478,4.06,208.99,208.94,121.1462]
[1759136797278,4.06,208.99,208.95,7.44]
[1759136797478,4.06,208.99,208.94,121.1462]
[1759136798167,4.06,208.99,208.95,7.44]
[1759136798370,4.06,208.99,208.94,121.1462]
[1759136798571,4.06,208.99,208.95,4.306]
[1759136799074,4.06,208.99,208.96,7.44]
[1759136799266,4.06,208.99,208.95,4.306]
[1759136799467,4.3048,209.02,208.96,5.59604846]
[1759136799671,8.3648,209.02,208.97,7.44]
[1759136799871,4.06,209.01,208.96,5.59604846]
[1759136800272,4.06,209.01,208.97,7.44]
[1759136800472,4.06,209.01,208.96,5.59604846]
[1759136800672,4.06,209.01,208.97,7.44]
[1759136801074,4.06,209.01,208.96,5.59604846]
[1759136801873,4.06,209.01,208.97,7.44]
[1759136802178,4.06,209.01,208.96,5.59604846]
[1759136802572,4.06,209.01,208.97,7.44]
[1759136802772,4.06,209.01,208.96,5.59604846]
[1759136803867,4.06,209.01,208.97,7.44]
[1759136804280,4.06,209.01,208.96,5.59604846]
[1759136805181,4.06,209.01,208.97,7.44]
[1759136805376,4.06,209.01,208.96,5.59604846]
[1759136805972,4.06,209.01,208.97,7.44]
[1759136806173,4.3048,209.02,208.97,7.44]
[1759136806374,4.06,209.01,208.96,5.59604846]
[1759136806577,8.3648,209.02,208.97,11.7456]
[1759136806783,4.06,209.01,208.98,7.44]
[1759136807078,4.3048,209.02,208.98,7.44]
[1759136807381,4.06,209.01,208.98,7.44]
[1759136807773,4.3048,209.02,208.98,7.44]
[1759136808179,4.06,209.01,208.98,7.44]
[1759136812478,4.3045,209.03,208.98,7.44]
[1759136812675,4.3045,209.03,208.97,4.3056]
[1759136813283,4.06,209.02,208.98,7.44]
[1759136813478,4.06,209.02,208.97,4.3056]
[1759136813684,4.3045,209.03,208.98,7.44]
[1759136813984,8.3845,209.03,208.98,7.44]
[1759136814187,4.3045,209.03,208.97,4.3056]
[1759136814580,52.04,209.09,208.94,183.7872]
[1759136814774,4.08,209.1,208.95,7.44]
[1759136814985,350.58456255,209.11,208.97,7.44]
[1759136815181,4.08,209.07,209.01,7.44]
[1759136816485,4.08,209.07,209.02,4.3046]
[1759136816886,4.08,209.07,209.03,7.44]
[1759136817481,4.08,209.1,208.99,4.3052]
[1759136818084,2.20456255,209.11,209.0,7.44]
[1759136818478,8.3838,209.07,209.0,7.44]
[1759136819189,4.304,209.06,209.0,7.44]
[1759136819988,8.3842,209.05,208.98,7.44]
[1759136821290,8.3842,209.05,208.99,4.3052]
[1759136821589,4.3038,209.07,209.0,7.44]
[1759136822682,4.3038,209.07,209.0,11.745]
[1759136823192,4.08,209.08,209.01,4.3048]
[1759136823490,4.08,209.08,209.02,7.44]
[1759136823885,4.08,209.08,208.96,66.9818]
[1759136824094,4.08,209.08,208.98,7.44]
[1759136824785,4.08,209.08,209.03,4.3043]
[1759136824985,8.57342,209.11,209.04,7.44]
[1759136826591,8.57342,209.11,209.04,11.7441]
[1759136828289,8.57342,209.11,209.05,4.304]
[1759136828993,8.3829,209.11,209.05,4.304]
[1759136829895,8.3829,209.11,209.04,7.44]
[1759136830092,2.01404255,209.14,209.04,7.44]
[1759136830292,4.08,209.13,209.04,7.44]
[1759136830496,66.9214,209.15,209.01,7.44]
[1759136830497,4.3035,209.08,209.01,7.44]
[1759136830691,4.08,209.08,209.01,7.44]
[1759136830891,4.08,209.08,209.03,4.3044]
[1759136831297,4.08,209.08,209.04,7.44]
[1759136831494,4.08,209.08,209.03,4.3044]
[1759136831998,4.08,209.08,209.04,7.44]
[1759136832794,4.08,209.08,209.04,7.36]
[1759136833296,4.07,209.08,209.04,7.36]
[1759136833499,4.07,209.08,209.03,4.3044]
[1759136834490,4.07,209.08,209.05,7.36]
[1759136836292,4.3033,209.09,209.05,7.36]
[1759136836694,4.07,209.08,209.05,7.36]
[1759136839397,4.07,209.08,209.04,4.3042]
[1759136839592,4.07,209.08,209.05,7.36]
[1759136839792,4.3033,209.09,209.05,7.36]
[1759136839996,4.07,209.08,209.05,7.36]
[1759136840792,8.3736,209.08,209.05,7.36]
[1759136842299,8.3736,209.08,208.99,7.36]
[1759136842699,4.07,209.06,208.95,7.36]
[1759136842898,4.07,209.06,208.96,7.36]
[1759136844704,8.3739,209.06,209.0,4.305]
[1759136845094,8.3739,209.06,209.01,7.78]
[1759136846001,8.3739,209.06,209.0,4.305]
[1759136846202,8.3739,209.06,209.02,7.78]
[1759136846600,8.3739,209.06,209.01,4.3048]
[1759136847195,8.3739,209.06,209.0,7.78]
[1759136847399,2.01404255,209.07,208.89,206.56064332]
[1759136847599,68.96224255,209.07,208.94,7.78]
[1759136847803,4.07,209.06,208.94,7.78]
[1759136848010,68.96224255,209.07,208.94,7.78]
[1759136848508,4.07,209.06,208.94,7.78]
[1759136848709,8.3748,209.02,208.96,7.78]
[1759136852410,4.305,209.01,208.96,7.78]
[1759136852717,8.375,209.01,208.95,12.0861]
[1759136853513,2.01404255,209.04,208.94,7.78]
[1759136853818,2.01404255,209.01,208.94,7.78]
[1759136854110,4.07,209.0,208.94,7.78]
[1759136854309,2.01404255,209.01,208.94,7.78]
[1759136854715,4.07,208.97,208.94,7.78]
[1759136855811,4.3056,208.98,208.93,7.78]
[1759136856215,4.07,208.97,208.91,7.78]
[1759136859419,89.51284255,209.04,208.91,7.78]
[1759136859420,66.9743,208.99,208.91,7.78]
[1759136859721,66.9743,208.99,208.77,8.6196]
[1759136859722,68.98974255,208.98,208.87,7.78]
[1759136859924,4.07,208.97,208.87,7.78]
[1759136860112,68.98974255,208.98,208.87,7.78]
[1759136860711,4.07,208.95,208.87,7.78]
[1759136861022,116.66,209.03,208.87,7.78]
[1759136861221,2.01404255,209.04,208.9,7.78]
[1759136861422,4.07,208.99,208.9,7.78]
[1759136862627,4.3056,208.98,208.9,7.78]
[1759136864622,4.07,208.99,208.9,7.78]
[1759136864829,4.3059,208.97,208.9,7.78]
[1759136866828,8.3759,208.97,208.9,7.78]
[1759136868031,4.3054,208.99,208.9,7.78]
[1759136869030,4.3056,208.98,208.9,7.78]
[1759136872332,4.3056,208.98,208.92,7.78]
[1759136872632,4.07,208.96,208.91,1.28959044]
[1759136872928,4.3059,208.97,208.92,7.78]
[1759136873127,4.3059,208.97,208.91,1.28959044]
[1759136873330,4.3059,208.97,208.92,7.78]
[1759136873930,8.3759,208.97,208.92,7.74]
[1759136874132,8.3759,208.97,208.91,1.28959044]
[1759136874335,8.3759,208.97,208.92,7.74]
[1759136874537,8.3759,208.97,208.91,1.28959044]
[1759136874736,8.3759,208.97,208.91,9.02959044]
[1759136876041,8.3759,208.97,208.91,7.74]
[1759136877137,4.306,208.96,208.9,7.74]
[1759136877541,1.28959044,208.98,208.9,7.74]
[1759136877737,8.3765,208.94,208.88,7.74]
[1759136880340,4.306,208.96,208.88,7.74]
[1759136880542,4.306,208.96,208.89,1.28959044]
[1759136880744,4.306,208.96,208.9,7.74]
[1759136881437,8.3763,208.95,208.9,7.74]
[1759136881639,8.3763,208.95,208.89,5.59689044]
[1759136881938,8.3763,208.95,208.9,7.74]
[1759136882335,8.3763,208.95,208.89,5.59689044]
[1759136882536,8.3763,208.95,208.9,7.74]
[1759136882734,8.3763,208.95,208.89,4.3073]
[1759136883134,8.3763,208.95,208.9,7.74]
[1759136883334,8.3763,208.95,208.89,4.3073]
[1759136884047,8.3763,208.95,208.9,7.74]
[1759136884949,8.3763,208.95,208.89,4.3073]
[1759136885142,8.3763,208.95,208.9,7.74]
[1759136885648,4.07,208.93,208.9,7.74]